bitfinex/quotes_SOLUSD_20250204
["timestamp","ask_amount","ask_price","bid_price","bid_amount"]
[1738683019882,0.25098,212.21,212.14,0.063]
[1738683020087,0.12549,212.18,212.14,0.063]
[1738683020313,13.91380853,212.15,212.14,0.063]
[1738683020486,14.79801302,212.15,212.14,0.063]
[1738683021184,1.0,212.13,212.09,0.063]
[1738683021511,51.38022094,212.1,212.09,0.063]
[1738683021711,52.26474853,212.1,212.09,0.063]
[1738683021912,20.50196,212.06,212.04,0.063]
[1738683022113,0.88476486,212.05,212.04,0.063]
[1738683022294,37.46641241,212.13,212.04,37.52941241]
[1738683022618,38.35061228,212.15,212.08,37.46641241]
[1738683022919,0.37647,212.07,212.0,0.063]
[1738683023105,0.88463232,212.06,212.0,0.063]
[1738683023479,7.22458884,212.08,212.0,0.063]
[1738683023987,37.46641241,212.11,212.02,37.46641241]
[1738683024189,37.46641241,212.13,212.04,37.46641241]
[1738683024492,0.37647,212.1,212.0,37.52941241]
[1738683024811,0.25098,212.06,212.0,0.063]
[1738683025003,37.46641241,212.09,212.01,37.46641241]
[1738683025205,4.7141,212.13,212.0,0.063]
[1738683025206,37.46641241,212.13,212.05,37.46641241]
[1738683025418,37.46641241,212.14,212.05,37.46641241]
[1738683025596,0.37647,212.07,212.0,0.063]
[1738683025907,37.46641241,212.02,212.0,0.063]
[1738683026111,38.3510954,212.02,212.0,0.063]
[1738683026285,37.46641241,212.02,212.0,0.063]
[1738683026485,38.3510954,212.06,212.0,0.063]
[1738683026990,37.46641241,212.04,212.0,0.063]
[1738683027192,38.35095025,212.04,212.0,0.063]
[1738683027397,0.37647,212.03,212.0,0.063]
[1738683027598,37.46641241,212.06,212.0,0.063]
[1738683027913,38.35098608,212.1,212.0,37.52941241]
[1738683028086,37.46641241,212.1,212.02,37.46641241]
[1738683028286,38.35070311,212.12,212.02,37.46641241]
[1738683028493,37.46641241,212.12,212.04,37.46641241]
[1738683028693,0.25098,212.09,212.02,37.46641241]
[1738683029596,0.25098,212.09,212.0,37.52941241]
[1738683029815,37.46641241,212.1,212.03,20.0]
[1738683030019,0.88433544,212.16,212.06,37.46641241]
[1738683030020,37.46641241,212.15,212.06,37.46641241]
[1738683030221,44.69045714,212.17,212.08,37.46641241]
[1738683030415,13.91380853,212.14,212.06,37.46641241]
[1738683030592,37.46641241,212.09,212.02,37.46641241]
[1738683030913,37.46641241,212.06,212.0,0.063]
[1738683031114,0.12549,212.12,212.0,0.063]
[1738683031115,37.46641241,212.1,212.01,37.46641241]
[1738683031324,43.80641241,212.17,212.08,37.46641241]
[1738683031500,14.79786028,212.16,212.08,37.46641241]
[1738683031700,0.25098,212.14,212.08,37.46641241]
[1738683032015,37.46641241,212.18,212.08,37.46641241]
[1738683032222,37.46641241,212.12,212.04,37.46641241]
[1738683032413,37.46641241,212.18,212.1,37.46641241]
[1738683032730,0.25098,212.11,212.02,37.49641241]
[1738683032911,37.46641241,212.07,212.02,0.03]
[1738683033230,0.88428975,212.11,212.02,37.49641241]
[1738683033231,37.46641241,212.11,212.02,37.49641241]
[1738683033425,37.46641241,212.13,212.04,37.46641241]
[1738683033635,37.46641241,212.15,212.06,37.46641241]
[1738683033923,37.46641241,212.17,212.08,37.46641241]
[1738683034298,37.46641241,212.17,212.1,37.46641241]
[1738683034903,0.88389786,212.24,212.14,37.46641241]
[1738683035095,38.35012238,212.29,212.2,37.46641241]
[1738683035299,37.46641241,212.29,212.2,37.46641241]
[1738683035795,37.46641241,212.25,212.16,37.46641241]
[1738683036031,37.46641241,212.21,212.12,37.46641241]
[1738683036212,37.46641241,212.19,212.12,37.46641241]
[1738683036404,37.46641241,212.19,212.1,37.46641241]
[1738683036603,37.46641241,212.19,212.12,37.46641241]
[1738683037215,37.46641241,212.21,212.14,37.46641241]
[1738683037404,37.46641241,212.25,212.16,37.46641241]
[1738683037606,0.25098,212.24,212.18,37.46641241]
[1738683037805,37.46641241,212.25,212.18,37.46641241]
[1738683038031,0.063,212.3,212.2,37.46641241]
[1738683038032,37.46641241,212.27,212.2,37.46641241]
[1738683038603,0.063,212.3,212.25,37.46641241]
[1738683038803,0.063,212.3,212.27,37.46641241]
[1738683039111,0.063,212.3,212.29,57.46641241]
[1738683039315,0.063,212.3,212.23,37.46641241]
[1738683039516,0.063,212.3,212.27,37.46641241]
[1738683039709,0.063,212.3,212.29,57.46641241]
[1738683040127,0.063,212.3,212.25,37.46641241]
[1738683040439,0.063,212.3,212.27,37.46641241]
[1738683040999,0.063,212.3,212.29,37.46641241]
[1738683041406,38.34935485,212.47,212.32,21.0]
[1738683041642,37.52941241,212.51,212.41,37.46641241]
[1738683041810,37.46641241,212.49,212.41,37.46641241]
[1738683042002,37.46641241,212.47,212.39,37.46641241]
[1738683042206,37.46641241,212.43,212.35,37.46641241]
[1738683042419,4.7067,212.46,212.37,37.46641241]
[1738683042619,37.46641241,212.49,212.39,37.46641241]
[1738683042819,37.46641241,212.45,212.37,37.46641241]
[1738683043029,37.46641241,212.39,212.31,37.46641241]
[1738683043411,37.46641241,212.43,212.35,37.46641241]
[1738683043753,37.46641241,212.39,212.31,37.46641241]
[1738683044030,0.25098,212.38,212.31,37.46641241]
[1738683044230,37.46641241,212.33,212.25,37.46641241]
[1738683044703,0.25098,212.32,212.25,37.46641241]
[1738683044904,37.46641241,212.31,212.23,37.46641241]
[1738683045735,37.46641241,212.33,212.25,37.46641241]
[1738683045916,37.46641241,212.35,212.27,37.46641241]
[1738683046115,4.7084,212.39,212.31,37.46641241]
[1738683046314,11.7685,212.44,212.35,37.46641241]
[1738683046315,37.46641241,212.44,212.35,37.46641241]
[1738683046705,37.46641241,212.46,212.39,37.46641241]
[1738683047232,42.17321241,212.46,212.37,37.46641241]
[1738683047535,0.25098,212.43,212.35,37.46641241]
[1738683047742,37.46641241,212.44,212.35,37.46641241]
[1738683048422,42.17401241,212.42,212.33,37.46641241]
[1738683048735,37.46641241,212.4,212.33,37.46641241]
[1738683049041,37.46641241,212.36,212.29,37.46641241]
[1738683049344,37.46641241,212.3,212.21,37.46641241]
[1738683049509,37.46641241,212.28,212.21,37.46641241]
[1738683049711,37.46641241,212.28,212.19,37.46641241]
[1738683050115,37.46641241,212.24,212.15,37.46641241]
[1738683050323,37.46641241,212.2,212.11,37.46641241]
[1738683050837,37.46641241,212.26,212.17,37.46641241]
[1738683051050,37.46641241,212.29,212.21,37.46641241]
[1738683051267,37.46641241,212.23,212.15,37.46641241]
[1738683051856,37.46641241,212.18,212.11,37.46641241]
[1738683052045,0.25098,212.22,212.09,10.6552]
[1738683052236,37.46641241,212.18,212.1,37.46641241]
[1738683052440,37.46641241,212.2,212.12,37.46641241]
[1738683052647,37.46641241,212.22,212.14,37.46641241]
[1738683053357,37.46641241,212.26,212.16,37.46641241]
[1738683053657,37.46641241,212.26,212.18,37.46641241]
[1738683053852,37.46641241,212.28,212.18,37.46641241]
[1738683054071,37.46641241,212.26,212.18,37.46641241]
[1738683054251,37.46641241,212.19,212.11,37.46641241]
[1738683054448,37.46641241,212.19,212.09,37.46641241]
[1738683054688,37.46641241,212.17,212.07,37.46641241]
[1738683054859,37.46641241,212.15,212.07,37.46641241]
[1738683055168,37.46641241,212.17,212.09,37.46641241]
[1738683055363,37.46641241,212.25,212.15,37.46641241]
[1738683055664,37.46641241,212.27,212.19,37.46641241]
[1738683056366,4.96168,212.29,212.17,37.46641241]
[1738683056367,37.46641241,212.25,212.17,37.46641241]
[1738683056749,37.46641241,212.27,212.19,37.46641241]
[1738683057056,2.0900647,212.35,212.21,37.46641241]
[1738683057266,37.46641241,212.22,212.11,37.46641241]
[1738683057438,37.46641241,212.23,212.15,37.46641241]
[1738683057639,37.46641241,212.25,212.17,37.46641241]
[1738683057839,0.88381309,212.29,212.11,33.41184853]
[1738683057840,37.46641241,212.29,212.21,37.46641241]
[1738683058239,37.46641241,212.23,212.15,37.46641241]
[1738683058477,37.46641241,212.21,212.13,37.46641241]
[1738683058639,37.46641241,212.23,212.15,37.46641241]
[1738683058839,37.46641241,212.27,212.19,37.46641241]
[1738683059079,37.46641241,212.29,212.21,37.46641241]
[1738683059367,37.46641241,212.25,212.17,37.46641241]
[1738683059572,37.46641241,212.27,212.19,37.46641241]
[1738683059751,37.46641241,212.29,212.21,37.46641241]
[1738683059952,37.46641241,212.29,212.19,37.46641241]
[1738683060154,37.46641241,212.27,212.19,37.46641241]
[1738683060375,37.46641241,212.29,212.21,37.46641241]
[1738683060669,37.46641241,212.29,212.2,37.46641241]
[1738683060970,0.88331177,212.32,212.18,37.46641241]
[1738683060971,37.46641241,212.25,212.18,37.46641241]
[1738683061140,0.25098,212.27,212.16,37.46641241]
[1738683061340,37.46641241,212.21,212.12,37.46641241]
[1738683061572,37.46641241,212.19,212.1,37.46641241]
[1738683061937,37.46641241,212.17,212.08,37.46641241]
[1738683062139,37.46641241,212.13,212.04,37.46641241]
[1738683062548,0.88421814,212.12,212.07,1.0]
[1738683062869,11.7797,212.23,212.02,0.03]
[1738683062870,3.92019348,212.34,212.19,20.0]
[1738683063170,13.91380853,212.22,212.03,10.9465]
[1738683063372,13.91380853,212.22,212.08,37.46641241]
[1738683063373,37.46641241,212.17,212.08,37.46641241]
[1738683063562,0.37647,212.13,212.02,0.03]
[1738683063737,37.46641241,212.12,212.03,37.46641241]
[1738683063940,0.37647,212.09,212.02,0.03]
[1738683064136,37.46641241,212.14,212.05,37.46641241]
[1738683064374,37.46641241,212.16,212.09,37.46641241]
[1738683064550,0.25098,212.17,212.09,37.46641241]
[1738683064740,37.46641241,212.2,212.11,37.46641241]
[1738683065154,37.46641241,212.22,212.13,37.46641241]
[1738683065367,37.46641241,212.2,212.11,37.46641241]
[1738683065673,0.25098,212.19,212.11,37.46641241]
[1738683066076,37.46641241,212.2,212.14,20.0]
[1738683066275,10.5111,212.27,212.17,37.46641241]
[1738683066276,38.35022116,212.26,212.17,37.46641241]
[1738683066466,37.46641241,212.26,212.17,37.46641241]
[1738683067061,37.46641241,212.28,212.19,37.46641241]
[1738683067340,37.46641241,212.28,212.08,37.71739241]
[1738683067341,37.46641241,212.26,212.17,37.46641241]
[1738683067559,37.46641241,212.29,212.2,37.46641241]
[1738683067769,37.46641241,212.31,212.22,37.46641241]
[1738683067941,37.46641241,212.35,212.27,37.46641241]
[1738683068144,37.46641241,212.35,212.17,0.25098]
[1738683068145,0.50196,212.32,212.23,37.46641241]
[1738683068342,37.46641241,212.25,212.17,37.46641241]
[1738683068680,37.46641241,212.23,212.15,37.46641241]
[1738683068856,0.25098,212.2,212.13,37.46641241]
[1738683069048,37.46641241,212.21,212.13,37.46641241]
[1738683069249,37.46641241,212.25,212.15,37.46641241]
[1738683069453,37.46641241,212.23,212.13,37.46641241]
[1738683069709,0.25098,212.22,212.13,37.46641241]
[1738683070055,37.71739241,212.25,212.16,37.46641241]
[1738683070374,37.46641241,212.18,212.09,37.46641241]
[1738683070678,37.46641241,212.16,212.07,37.46641241]
[1738683070856,37.46641241,212.16,212.02,0.15549]
[1738683070857,37.46641241,212.14,212.05,37.46641241]
[1738683071182,0.37647,212.09,212.02,0.03]
[1738683071353,37.46641241,212.08,212.02,0.03]
[1738683071984,37.46641241,212.03,211.99,0.063]
[1738683072210,51.38022094,212.01,211.99,0.063]
[1738683072749,0.37647,211.99,211.94,0.063]
[1738683072950,37.46641241,211.97,211.94,0.063]
[1738683073150,37.46641241,211.99,211.94,0.063]
[1738683073502,37.46641241,212.04,211.95,37.46641241]
[1738683073682,37.46641241,212.06,211.97,37.46641241]
[1738683073879,37.46641241,212.08,211.99,37.46641241]
[1738683074204,37.46641241,212.04,211.97,37.46641241]
[1738683074502,37.46641241,211.98,211.94,0.063]
[1738683074711,0.50196,211.95,211.94,0.063]
[1738683074870,14.79877128,211.95,211.94,0.063]
[1738683075065,1.38692275,211.95,211.94,0.063]
[1738683075379,37.46641241,211.96,211.94,0.063]
[1738683075579,37.46641241,211.98,211.94,0.063]
[1738683075790,37.46641241,212.0,211.94,0.063]
[1738683075990,37.46641241,212.02,211.94,57.52941241]
[1738683076166,37.46641241,212.04,211.94,57.52941241]
[1738683076370,37.46641241,212.02,211.94,57.52941241]
[1738683076771,37.46641241,212.06,211.96,37.46641241]
[1738683076999,0.37647,212.05,211.96,37.46641241]
[1738683077200,37.46641241,212.02,211.94,57.52941241]
[1738683077505,37.46641241,211.98,211.94,0.063]
[1738683077794,37.46641241,211.96,211.94,0.063]
[1738683078113,37.46641241,211.98,211.94,0.063]
[1738683078287,37.46641241,212.0,211.94,0.063]
[1738683078613,37.46641241,211.96,211.94,0.063]
[1738683078776,0.50196,211.95,211.94,0.063]
[1738683079697,37.46641241,211.96,211.94,0.063]
[1738683079900,4.7171,212.0,211.94,0.063]
[1738683079901,37.46641241,212.0,211.94,0.063]
[1738683080377,37.46641241,211.98,211.94,0.063]
[1738683080700,0.37647,211.97,211.94,0.063]
[1738683081104,0.37647,211.95,211.94,0.063]
[1738683081296,13.41184853,211.98,211.94,0.063]
[1738683081297,51.76311755,211.98,211.94,0.063]
[1738683081496,37.52941241,212.02,211.94,0.063]
[1738683081687,38.41405165,212.02,211.94,37.52941241]
[1738683081891,37.46641241,212.0,211.94,0.063]
[1738683082580,38.35104649,212.0,211.94,0.063]
[1738683082808,37.52941241,212.02,211.94,0.063]
[1738683082975,37.52941241,212.02,211.94,37.52941241]
[1738683084005,0.063,212.02,212.0,37.46641241]
[1738683084414,0.063,212.02,211.98,37.46641241]
[1738683084584,0.063,212.02,211.96,37.46641241]
[1738683084787,0.063,212.02,212.0,37.46641241]
[1738683084991,0.063,212.02,211.98,37.46641241]
[1738683085294,0.063,212.02,211.96,37.46641241]
[1738683085884,0.063,212.02,211.95,11.6415]
[1738683085885,0.063,212.02,212.0,37.46641241]
[1738683086381,37.46641241,212.14,212.04,20.0]
[1738683086615,42.18031241,212.14,212.05,37.46641241]
[1738683086915,37.46641241,212.14,212.05,37.46641241]
[1738683087087,37.46641241,212.16,212.09,37.46641241]
[1738683087278,37.46641241,212.22,212.13,37.46641241]
[1738683087484,37.46641241,212.22,212.16,20.0]
[1738683087719,0.063,212.24,212.17,37.46641241]
[1738683088013,0.063,212.24,212.23,20.0]
[1738683088220,0.063,212.24,212.23,37.46641241]
[1738683088396,14.20035779,212.36,212.25,1.0]
[1738683088616,14.20035779,212.36,212.33,37.46641241]
[1738683089131,14.20035779,212.36,212.33,52.38022094]
[1738683089340,22.91444758,212.37,212.36,20.50196]
[1738683089635,43.20887813,212.4,212.36,20.50196]
[1738683089636,43.20887813,212.4,212.39,14.91380853]
[1738683089825,0.063,212.46,212.44,1.0]
[1738683090134,0.063,212.46,212.45,51.38022094]
[1738683090329,0.063,212.46,212.45,37.46641241]
[1738683091107,1.0,212.44,212.39,37.46641241]
[1738683091411,0.063,212.46,212.3,48.53111241]
[1738683091412,1.0,212.42,212.37,37.46641241]
[1738683091613,1.0,212.45,212.39,37.46641241]
[1738683091838,0.063,212.46,212.43,37.46641241]
[1738683092136,0.063,212.46,212.45,37.46641241]
[1738683092908,0.063,212.46,212.45,20.0]
[1738683093108,0.063,212.46,212.45,57.46641241]
[1738683093326,0.96576702,212.5,212.45,37.46641241]
[1738683093511,0.96576702,212.53,212.47,37.46641241]
[1738683093706,0.96576702,212.55,212.5,37.46641241]
[1738683093905,0.96576702,212.57,212.52,37.46641241]
[1738683094412,1.0,212.58,212.52,37.46641241]
[1738683094605,0.96576702,212.53,212.48,37.46641241]
[1738683094812,1.96576702,212.59,212.52,37.46641241]
[1738683095026,1.0,212.5,212.48,37.46641241]
[1738683095220,0.96576702,212.47,212.46,7.2391812]
[1738683095728,14.37761555,212.47,212.46,7.2391812]
[1738683096134,1.0,212.46,212.43,20.0]
[1738683096339,0.96576702,212.43,212.38,37.46641241]
[1738683096521,1.0,212.4,212.37,28.80591875]
[1738683096724,0.96576702,212.39,212.37,28.80591875]
[1738683097243,1.0,212.38,212.37,28.80591875]
[1738683097444,14.91380853,212.38,212.37,28.80591875]
[1738683097838,0.96576702,212.37,212.29,37.46641241]
[1738683098021,0.96576702,212.37,212.31,37.46641241]
[1738683098224,1.0,212.34,212.32,37.46641241]
[1738683098420,0.96576702,212.36,212.3,37.46641241]
[1738683098729,0.96576702,212.39,212.34,37.46641241]
[1738683098947,1.96576702,212.43,212.38,37.46641241]
[1738683099251,0.96576702,212.41,212.38,37.46641241]
[1738683099426,0.96576702,212.39,212.38,20.0]
[1738683099822,1.96576702,212.39,212.34,37.46641241]
[1738683100055,4.95808,212.45,212.41,20.0]
[1738683100056,0.96576702,212.45,212.41,20.0]
[1738683100345,1.0,212.43,212.41,20.0]
[1738683100550,0.96576702,212.39,212.35,37.46641241]
[1738683100735,1.0,212.4,212.38,20.0]
[1738683101050,0.96576702,212.42,212.38,20.0]
[1738683101357,0.96576702,212.4,212.37,37.46641241]
[1738683101563,1.0,212.39,212.35,37.46641241]
[1738683101726,0.96576702,212.42,212.35,37.46641241]
[1738683101921,0.96576702,212.42,212.39,37.46641241]
[1738683102141,0.96576702,212.42,212.38,20.0]
[1738683102348,0.96576702,212.37,212.33,37.46641241]
[1738683102650,0.96576702,212.46,212.38,20.0]
[1738683102830,0.96576702,212.51,212.45,37.46641241]
[1738683103025,1.96576702,212.46,212.41,37.46641241]
[1738683103225,0.96576702,212.4,212.37,37.46641241]
[1738683103456,38.43217943,212.45,212.37,37.46641241]
[1738683103657,38.43217943,212.47,212.42,20.0]
[1738683103827,38.43217943,212.51,212.44,20.0]
[1738683104027,13.41184853,212.5,212.44,20.0]
[1738683104323,0.96576702,212.49,212.43,37.46641241]
[1738683104547,0.96576702,212.55,212.5,20.0]
[1738683104745,0.063,212.56,212.54,20.0]
[1738683105148,0.063,212.56,212.55,20.0]
[1738683105335,0.063,212.56,212.55,57.46641241]
[1738683105953,0.063,212.56,212.55,57.84288241]
[1738683106456,0.063,212.56,212.51,37.46641241]
[1738683106754,0.063,212.56,212.55,57.46641241]
[1738683106935,0.063,212.56,212.55,20.0]
[1738683107343,0.063,212.56,212.55,57.46641241]
[1738683107735,0.063,212.56,212.55,57.84288241]
[1738683108134,0.063,212.56,212.55,57.96837241]
[1738683109454,2.02876702,212.7,212.6,0.37647]
[1738683109627,0.063,212.7,212.69,57.46641241]
[1738683110150,0.063,212.7,212.69,20.0]
[1738683111247,0.96576702,212.68,212.63,37.46641241]
[1738683111630,1.02876702,212.7,212.66,20.0]
[1738683112142,1.02876702,212.7,212.69,20.0]
[1738683112143,0.063,212.7,212.69,20.0]
[1738683112352,1.02876702,212.7,212.69,20.0]
[1738683112729,0.063,212.7,212.68,20.0]
[1738683112955,0.063,212.7,212.69,20.0]
[1738683113757,0.063,212.7,212.69,37.46641241]
[1738683114157,1.02876702,212.7,212.69,20.0]
[1738683114332,1.02876702,212.7,212.63,37.46641241]
[1738683114530,0.96576702,212.68,212.63,37.46641241]
[1738683115457,0.063,212.7,212.69,20.0]
[1738683115628,0.063,212.7,212.69,57.46641241]
[1738683117760,0.063,212.73,212.72,0.50196]
[1738683117958,0.063,212.73,212.72,88.84663335]
[1738683118162,0.063,212.73,212.72,37.46641241]
[1738683118337,0.063,212.73,212.7,37.46641241]
[1738683118840,0.063,212.73,212.53,30.0]
[1738683118841,0.063,212.73,212.72,37.46641241]
[1738683119561,0.063,212.73,212.72,88.84663335]
[1738683120433,0.03,212.76,212.75,20.50196]
[1738683120631,0.03,212.76,212.75,57.96837241]
[1738683120837,0.03,212.76,212.75,0.37647]
[1738683121066,1.0,212.91,212.81,20.0]
[1738683121240,1.96576702,212.9,212.88,37.46641241]
[1738683121442,0.03,212.92,212.91,20.0]
[1738683121744,0.03,212.92,212.9,37.46641241]
[1738683121951,0.03,212.92,212.91,0.50196]
[1738683122168,0.03,212.92,212.91,0.37647]
[1738683122458,0.03,212.92,212.91,13.91380853]
[1738683122837,0.03,212.92,212.91,0.37647]
[1738683123247,0.03,212.92,212.9,37.46641241]
[1738683123448,1.0,212.89,212.86,37.46641241]
[1738683123636,0.96576702,212.89,212.84,37.46641241]
[1738683123972,0.96576702,212.87,212.84,37.46641241]
[1738683124270,0.03,212.92,212.86,37.46641241]
[1738683124565,0.03,212.92,212.91,37.46641241]
[1738683125160,0.99576702,212.92,212.87,37.46641241]
[1738683125473,0.03,212.92,212.91,37.46641241]
[1738683126169,0.96576702,212.91,212.88,37.46641241]
[1738683126562,0.03,212.92,212.88,37.46641241]
[1738683126770,0.03,212.92,212.9,37.46641241]
[1738683126984,0.03,212.92,212.91,13.91380853]
[1738683128068,0.03,212.92,212.91,0.37647]
[1738683128391,0.03,212.92,212.91,13.91380853]
[1738683128594,0.03,212.92,212.91,54.11122094]
[1738683128778,0.03,212.98,212.95,20.50196]
[1738683128977,0.03,212.98,212.97,37.84288241]
[1738683129164,0.03,212.98,212.97,51.38022094]
[1738683129565,0.03,212.98,212.96,37.46641241]
[1738683129820,0.03,212.98,212.96,74.93282482]
[1738683130463,0.03,212.98,212.97,13.91380853]
[1738683130665,0.03,212.98,212.96,74.93282482]
[1738683130666,0.03,213.09,213.04,20.0]
[1738683130866,1.96576702,213.05,213.02,37.46641241]
[1738683131063,0.96576702,212.99,212.98,37.46641241]
[1738683131290,0.96576702,212.99,212.96,37.46641241]
[1738683131494,0.96576702,212.97,212.94,37.46641241]
[1738683131792,0.96576702,212.95,212.94,37.46641241]
[1738683131972,1.96576702,212.95,212.92,37.46641241]
[1738683132314,0.96576702,212.95,212.92,37.46641241]
[1738683132479,1.0,212.91,212.85,37.46641241]
[1738683132679,0.96576702,212.93,212.88,37.46641241]
[1738683132871,0.96576702,212.97,212.92,37.46641241]
[1738683133074,0.96576702,212.99,212.96,37.46641241]
[1738683133385,0.96576702,212.99,212.89,0.12549]
[1738683133386,0.96576702,212.99,212.98,37.46641241]
[1738683133612,0.96576702,212.95,212.92,37.46641241]
[1738683133788,0.96576702,212.91,212.88,37.46641241]
[1738683133984,0.96576702,212.87,212.86,37.46641241]
[1738683134520,0.96576702,212.9,212.86,37.46641241]
[1738683134819,0.96576702,212.93,212.88,37.46641241]
[1738683134979,0.96576702,212.86,212.85,37.46641241]
[1738683135175,0.96576702,212.84,212.81,37.46641241]
[1738683135479,1.96576702,212.85,212.81,37.46641241]
[1738683135681,0.96576702,212.82,212.81,37.46641241]
[1738683136402,0.96576702,212.85,212.81,37.46641241]
[1738683136584,0.96576702,212.93,212.87,20.0]
[1738683136912,0.96576702,212.94,212.92,37.46641241]
[1738683137114,0.96576702,212.91,212.9,37.46641241]
[1738683137906,0.96576702,212.89,212.88,37.46641241]
[1738683138803,1.96576702,212.87,212.84,37.46641241]
[1738683139009,0.96576702,212.89,212.86,37.46641241]
[1738683139211,1.0,212.91,212.78,13.53733853]
[1738683139212,0.96576702,212.87,212.82,0.37647]
[1738683139782,0.96576702,212.9,212.86,20.0]
[1738683139987,0.96576702,212.96,212.86,20.0]
[1738683140186,0.96576702,212.96,212.95,37.46641241]
[1738683140494,0.96576702,212.94,212.93,37.46641241]
[1738683140815,1.0,212.95,212.92,37.46641241]
[1738683141022,1.96576702,212.95,212.92,37.46641241]
[1738683141227,1.96576702,212.93,212.9,37.46641241]
[1738683141526,0.96576702,212.99,212.95,20.0]
[1738683141694,0.96576702,213.04,213.01,20.0]
[1738683141899,3.99626702,213.06,213.03,37.46641241]
[1738683142113,3.0305,213.06,213.05,37.46641241]
[1738683142427,3.0305,213.06,212.96,37.59190241]
[1738683142428,0.96576702,213.04,213.03,37.46641241]
[1738683142731,3.99626702,213.06,213.03,37.46641241]
[1738683143016,0.03,213.09,213.05,57.46641241]
[1738683143219,0.03,213.09,213.08,37.46641241]
[1738683143597,0.96576702,213.07,213.06,37.46641241]
[1738683143793,1.96576702,213.03,213.02,37.46641241]
[1738683144017,1.96576702,213.03,213.0,37.46641241]
[1738683144018,0.96576702,213.01,213.0,37.46641241]
[1738683144225,0.96576702,212.97,212.94,37.46641241]
[1738683144530,0.063,212.98,212.96,37.46641241]
[1738683144899,0.96576702,212.97,212.96,37.46641241]
[1738683145097,0.96576702,212.97,212.93,0.37647]
[1738683145098,1.96576702,212.93,212.9,37.49641241]
[1738683145295,1.96576702,212.91,212.9,37.49641241]
[1738683145501,15.37761555,212.91,212.9,0.03]
[1738683145696,20.19990555,212.91,212.79,37.46641241]
[1738683145921,0.96576702,212.81,212.77,37.46641241]
[1738683146117,1.0,212.82,212.77,20.0]
[1738683146118,0.96576702,212.82,212.77,20.0]
[1738683146323,0.96576702,212.9,212.83,20.0]
[1738683146513,0.96576702,212.9,212.77,20.0]
[1738683146514,0.96576702,212.91,212.79,20.0]
[1738683146715,0.96576702,212.87,212.8,2.45820646]
[1738683146909,0.96576702,212.87,212.77,1.15019832]
[1738683147119,0.96576702,212.91,212.89,20.0]
[1738683147309,4.04376702,212.97,212.93,20.0]
[1738683147510,0.96576702,212.94,212.93,57.46641241]
[1738683148026,0.96576702,212.92,212.9,37.46641241]
[1738683148399,1.0,212.94,212.93,20.0]
[1738683148820,0.96576702,212.9,212.87,37.46641241]
[1738683148998,0.96576702,212.94,212.89,37.46641241]
[1738683149202,0.96576702,212.94,212.92,37.46641241]
[1738683149601,0.96576702,212.96,212.92,37.46641241]
[1738683149803,1.0,212.95,212.94,37.46641241]
[1738683150116,3.078,212.97,212.94,37.46641241]
[1738683150303,1.02876702,212.98,212.96,37.46641241]
[1738683150508,0.063,212.98,212.96,37.46641241]
[1738683150828,1.0,212.95,212.92,37.46641241]
[1738683151127,0.063,212.98,212.84,11.6695]
[1738683151128,0.96576702,212.89,212.88,37.46641241]
[1738683151315,0.96576702,212.91,212.9,20.0]
[1738683151519,0.96576702,212.87,212.86,37.46641241]
[1738683151725,37.46641241,212.95,212.86,37.46641241]
[1738683151726,0.96576702,212.91,212.89,20.0]
[1738683151925,0.96576702,212.91,212.9,37.46641241]
[1738683152528,0.96576702,212.83,212.82,37.46641241]
[1738683152830,0.96576702,212.79,212.78,37.46641241]
[1738683153018,0.96576702,212.77,212.76,37.49641241]
[1738683153220,0.96576702,212.77,212.76,0.03]
[1738683153431,14.37761555,212.77,212.76,0.03]
[1738683153630,14.50310555,212.77,212.76,0.03]
[1738683153940,1.96576702,212.7,212.69,8.17303473]
[1738683154623,0.96576702,212.58,212.56,10.21629341]
[1738683155805,0.96576702,212.62,212.56,0.37647]
[1738683156023,0.96576702,212.66,212.61,0.37647]
[1738683156310,0.96576702,212.66,212.65,37.46641241]
[1738683156509,1.96576702,212.64,212.59,37.46641241]
[1738683156813,0.96576702,212.6,212.59,37.46641241]
[1738683157015,0.96576702,212.64,212.62,20.0]
[1738683157245,0.96576702,212.68,212.66,20.0]
[1738683157533,1.0,212.67,212.65,37.46641241]
[1738683157742,0.96576702,212.69,212.65,37.46641241]
[1738683157933,0.96576702,212.71,212.68,57.46641241]